bitfinex-derivatives/quotes_ETHF0:USTF0_20251013
["timestamp","ask_amount","ask_price","bid_price","bid_amount"]
[1760314885599,4.01126633,4168.4,4168.3,0.43144]
[1760314885905,4.01126633,4168.4,4167.4,3.2078]
[1760314885906,0.8006,4168.1,4167.4,3.2078]
[1760314886203,0.8006,4167.5,4167.4,0.43152]
[1760314886404,0.8006,4167.5,4167.2,0.43155]
[1760314886601,0.8006,4167.5,4166.6,3.988]
[1760314887002,4.0084,4167.6,4167.5,0.43152]
[1760314887304,3.2078,4168.2,4167.3,3.2078]
[1760314887500,3.2078,4168.2,4166.2,3.21079615]
[1760314887501,0.8006,4167.0,4166.2,3.21079615]
[1760314887693,4.0084,4167.0,4166.2,3.21079615]
[1760314887896,3.2078,4166.3,4166.2,0.00299615]
[1760314888096,4.0084,4166.3,4166.2,0.00299615]
[1760314888294,0.8006,4165.7,4165.2,0.24008163]
[1760314888510,4.0084,4165.3,4165.2,0.24008163]
[1760314888703,4.44015,4165.3,4165.2,0.24008163]
[1760314888904,7.50304191,4165.3,4165.2,0.24008163]
[1760314889208,0.2991,4165.2,4163.8,3.988]
[1760314889400,0.8006,4163.9,4163.8,0.0023774]
[1760314889599,3.2078,4164.0,4163.8,0.0023774]
[1760314889801,3.2078,4164.0,4163.8,0.4342774]
[1760314890402,4.0084,4164.2,4164.1,0.43187]
[1760314890701,7.18491791,4164.2,4164.1,0.43187]
[1760314891305,3.2078,4164.7,4164.4,0.43184]
[1760314891510,3.2099684,4165.2,4164.1,12.65677]
[1760314891704,3.2099684,4165.2,4165.1,0.43177]
[1760314892006,6.30008137,4165.2,4165.1,0.43177]
[1760314892208,7.10068137,4165.2,4164.3,3.2078]
[1760314892719,4.0084,4164.6,4163.8,3.2101774]
[1760314892896,4.0084,4164.6,4164.0,0.43187]
[1760314893094,3.15318155,4164.5,4164.4,0.7802]
[1760314893293,3.2078,4164.6,4164.5,0.43183]
[1760314893804,7.16158155,4164.6,4164.5,0.43183]
[1760314894006,6.36098155,4164.6,4164.5,0.43183]
[1760314894305,3.15318155,4164.6,4164.5,0.43183]
[1760314894508,3.2078,4165.1,4165.0,0.43178]
[1760314894711,4.0084,4165.1,4164.8,0.4318]
[1760314894901,3.96299351,4165.0,4164.8,0.4318]
[1760314895305,0.8006,4164.9,4164.1,0.7802]
[1760314895498,3.16239351,4165.0,4163.8,3.2101774]
[1760314895499,3.16239351,4165.0,4163.8,0.0023774]
[1760314895803,0.8006,4163.9,4163.8,0.0023774]
[1760314895998,0.8006,4163.9,4162.8,0.02402229]
[1760314896205,0.8006,4163.0,4162.8,0.02402229]
[1760314896401,0.8006,4163.0,4162.8,0.45603229]
[1760314896599,4.0084,4163.1,4162.8,0.45603229]
[1760314896800,0.8006,4163.0,4162.9,0.43199]
[1760314897000,3.91899739,4163.0,4162.9,0.00309143]
[1760314897198,3.11839739,4163.0,4162.9,0.00309143]
[1760314897510,3.2078,4163.8,4163.7,0.43191]
[1760314897711,3.2078,4163.8,4163.6,0.43191]
[1760314897712,4.0084,4163.8,4163.6,0.43191]
[1760314897909,7.14641699,4163.8,4163.6,0.43192]
[1760314898102,3.13801699,4163.8,4163.7,0.7802]
[1760314898410,3.2078,4164.3,4164.2,0.43186]
[1760314898802,4.0084,4164.3,4163.2,3.2078]
[1760314899010,7.1954503,4164.3,4164.0,0.43187]
[1760314899207,3.2078,4164.3,4164.2,1.21206]
[1760314899906,0.3012684,4165.2,4164.2,0.7802]
[1760314899907,3.2078,4164.8,4164.2,0.7802]
[1760314900100,3.2078,4164.8,4163.9,3.2078]
[1760314900101,0.8006,4164.7,4163.9,3.2078]
[1760314900301,6.32184151,4164.8,4164.4,1.21203]
[1760314900505,3.2078,4164.8,4164.4,1.21203]
[1760314900698,3.2078,4164.8,4164.4,0.43183]
[1760314900904,0.0021684,4165.2,4164.1,0.7802]
[1760314901109,3.2078,4164.8,4164.3,0.43184]
[1760314901308,3.2078,4164.8,4163.9,3.2078]
[1760314901309,0.8006,4164.5,4163.9,3.2078]
[1760314901605,0.3084,4164.6,4163.0,3.2078]
[1760314901606,4.0084,4164.1,4163.0,3.2078]
[1760314901816,0.8006,4163.2,4162.9,0.00309143]
[1760314902000,3.2078,4163.3,4162.9,0.00309143]
[1760314902311,0.8006,4163.0,4162.9,0.00309143]
[1760314902712,3.89110959,4163.0,4162.9,0.00309143]
[1760314903702,3.89110959,4163.0,4162.8,0.02402229]
[1760314903703,0.2991,4162.9,4161.3,3.2078]
[1760314903902,3.2078,4162.4,4161.3,3.2078]
[1760314904217,6.35890692,4162.3,4161.3,0.43216]
[1760314904510,6.35890692,4162.3,4160.8,3.2078]
[1760314904511,0.7659,4162.1,4160.9,0.4322]
[1760314904809,3.2078,4161.8,4160.9,0.00186685]
[1760314905006,0.7659,4161.7,4160.9,0.00186685]
[1760314905210,3.89812829,4161.7,4161.1,0.43218]
[1760314905413,3.13222829,4161.7,4161.0,0.8002]
[1760314905902,3.2078,4161.8,4161.7,0.8002]
[1760314906103,0.00185778,4162.1,4161.8,0.43211]
[1760314906303,3.17184125,4161.8,4161.0,0.8002]
[1760314906505,0.7659,4161.7,4160.9,0.43406685]
[1760314906712,0.7659,4161.7,4160.9,0.00186685]
[1760314906904,3.17184125,4161.6,4160.9,0.43406685]
[1760314907305,3.17184125,4161.6,4160.9,0.00186685]
[1760314907903,3.93774125,4161.6,4161.1,0.43218]
[1760314908099,3.17184125,4161.6,4161.1,0.43218]
[1760314908304,3.1350471,4161.8,4160.9,0.00186685]
[1760314908505,3.2078,4161.9,4161.1,0.43218]
[1760314908907,3.1350471,4161.8,4161.2,0.43217]
[1760314909106,3.1350471,4161.8,4160.9,0.00186685]
[1760314909308,0.7659,4161.7,4160.9,0.00186685]
[1760314909510,3.1350471,4161.8,4160.9,0.00186685]
[1760314909709,3.2078,4161.9,4161.4,0.43214]
[1760314909912,0.7659,4161.5,4160.9,0.00186685]
[1760314910107,3.2078,4161.3,4160.9,0.00186685]
[1760314910409,0.2991,4161.0,4159.4,0.43235]
[1760314910614,3.2078,4159.5,4159.2,0.24042796]
[1760314910809,0.7659,4159.4,4159.2,0.24042796]
[1760314911111,0.7659,4159.3,4159.2,0.24042796]
[1760314911313,0.7659,4159.3,4159.2,0.24316891]
[1760314911507,3.83632669,4159.3,4159.2,0.24316891]
[1760314911714,3.83632669,4159.3,4158.6,3.2078]
[1760314912316,3.83632669,4159.3,4158.1,1.23269]
[1760314912512,0.9584,4159.2,4158.1,0.43249]
[1760314912710,0.803,4158.9,4158.1,0.43422255]
[1760314912907,0.00215139,4158.9,4158.8,0.43242]
[1760314913213,3.2078,4160.2,4159.6,0.43233]
[1760314913404,40.8,4160.3,4158.8,0.43242]
[1760314913405,0.803,4160.1,4158.8,0.43242]
[1760314913604,3.17081137,4159.7,4158.8,3.2078]
[1760314913809,3.2078,4159.8,4159.1,0.43239]
[1760314914007,0.803,4159.7,4158.3,3.2078]
[1760314914209,3.2078,4159.3,4158.3,3.64026]
[1760314914410,3.2078,4159.3,4158.3,3.2078]
[1760314914709,3.91142497,4159.2,4158.3,3.2078]
[1760314914907,0.803,4159.0,4158.3,3.2078]
[1760314915116,3.26382497,4159.2,4158.1,0.00173255]
[1760314915117,0.803,4158.7,4158.1,0.00173255]
[1760314915414,3.12210694,4158.6,4158.1,0.00173255]
[1760314915715,0.803,4158.5,4158.1,0.00173255]
[1760314915916,3.12210694,4158.6,4158.1,0.00173255]
[1760314916210,3.08679456,4158.4,4158.1,0.00173255]
[1760314916414,0.2991,4158.6,4158.1,0.00173255]
[1760314916713,41.603,4158.5,4158.1,0.00173255]
[1760314917015,4.0108,4158.8,4158.1,0.00173255]
[1760314917315,0.803,4159.2,4158.6,0.43243]
[1760314917516,0.80567603,4159.7,4159.2,0.43238]
[1760314917721,0.803,4159.6,4159.2,0.43238]
[1760314917920,3.07291638,4159.6,4159.4,0.43236]
[1760314918213,0.803,4159.5,4159.4,0.43236]
[1760314918416,0.803,4159.5,4158.6,0.43244]
[1760314918614,3.2078,4159.2,4158.6,0.43244]
[1760314918812,3.2078,4159.2,4158.4,3.2078]
[1760314919017,0.803,4159.0,4158.3,0.43247]
[1760314919319,3.12025899,4158.9,4158.6,0.43244]
[1760314919513,3.12025899,4158.9,4158.8,1.21052]
[1760314919720,3.2078,4159.2,4159.1,0.43239]
[1760314920018,3.2078,4159.2,4159.1,1.21049]
[1760314920317,3.2078,4159.2,4158.8,0.43242]
[1760314920516,3.2078,4159.2,4159.1,0.7781]
[1760314920712,3.2078,4159.2,4158.4,4.28895]
[1760314920713,0.00267603,4159.7,4159.6,1.21044]
[1760314921116,3.2078,4159.8,4159.6,1.21044]
[1760314921117,3.2078,4159.8,4159.7,0.7781]
[1760314921321,3.2078,4159.8,4159.6,0.43234]
[1760314921322,3.2078,4161.1,4160.0,0.7781]
[1760314921517,3.2078,4161.1,4160.8,0.7781]
[1760314921719,3.15581635,4161.4,4160.6,0.43223]
[1760314922023,3.2078,4161.6,4161.3,0.43215]
[1760314922220,3.20967261,4161.6,4161.3,0.43520071]
[1760314922420,0.00187261,4161.6,4161.4,0.43214]
[1760314922621,0.00187261,4161.6,4161.3,0.43521071]
[1760314923017,0.803,4161.4,4160.1,3.2078]
[1760314923218,0.803,4160.2,4159.5,3.2078]
[1760314923420,0.803,4160.2,4158.8,0.7781]
[1760314923421,3.2078,4160.1,4159.0,3.2078]
[1760314923721,0.803,4159.9,4159.1,0.43238]
[1760314923923,3.17752124,4160.1,4159.0,3.2078]
[1760314924122,3.2078,4160.1,4159.4,0.43236]
[1760314924420,3.2078,4160.1,4159.0,3.21054157]
[1760314924421,3.2078,4159.6,4159.0,0.00274157]
[1760314924622,3.17611494,4160.0,4159.3,0.43236]
[1760314924830,3.17611494,4159.5,4159.0,0.00274157]
[1760314925029,0.803,4159.5,4159.0,0.00274157]
[1760314925218,0.43234,4159.6,4159.0,0.00274157]
[1760314925420,0.803,4159.2,4159.0,0.00274157]
[1760314925720,3.09716669,4159.5,4159.3,0.43236]
[1760314925926,3.09716669,4159.7,4159.3,0.43237]
[1760314926124,3.2078,4159.9,4159.3,0.43237]
[1760314926423,3.12432663,4159.8,4159.4,0.43235]
[1760314926624,3.2078,4160.4,4159.4,3.2078]
[1760314927129,3.92732663,4159.8,4159.0,0.00274157]
[1760314927421,3.2078,4159.5,4159.0,0.00274157]
[1760314927616,0.803,4159.4,4159.1,0.43239]
[1760314927821,3.19110569,4159.4,4159.2,0.43237]
[1760314928230,3.19110569,4159.4,4159.0,0.00274157]
[1760314928231,3.2078,4159.5,4159.4,0.43236]
[1760314928424,0.00187261,4161.6,4160.1,0.43229]
[1760314928425,3.2078,4160.4,4160.1,0.43229]
[1760314928625,0.803,4160.3,4159.4,3.2078]
[1760314928829,0.803,4160.3,4159.0,0.00274157]
[1760314928830,0.9584,4159.4,4159.0,0.00274157]
[1760314929019,0.803,4159.1,4159.0,0.00274157]
[1760314929425,3.94118422,4159.1,4159.0,4.157e-05]
[1760314929928,0.43244,4158.7,4157.9,3.2078]
[1760314930128,3.2078,4158.6,4158.4,0.43246]
[1760314930323,4.0108,4160.1,4159.5,0.43234]
[1760314930626,4.0108,4160.1,4160.0,0.7781]
[1760314930627,3.2078,4160.1,4160.0,0.7781]
[1760314930820,3.2078,4160.1,4159.4,3.2078]
[1760314930821,0.803,4159.9,4159.5,0.00228664]
[1760314931020,0.803,4159.3,4158.4,3.2078]
[1760314931219,3.2078,4158.6,4157.6,3.2078]
[1760314931624,3.48621371,4158.5,4157.5,0.43255]
[1760314931829,3.05376371,4158.5,4157.7,0.43253]
[1760314932025,3.05376371,4158.5,4157.8,0.43252]
[1760314932225,0.803,4158.4,4157.3,0.7781]
[1760314932431,0.803,4157.9,4157.8,0.00295009]
[1760314932828,3.86752822,4157.9,4157.8,0.00295009]
[1760314933227,0.803,4158.7,4157.8,0.00295009]
[1760314933426,3.2078,4158.4,4157.8,0.00295009]
[1760314933637,3.08516598,4158.3,4157.8,0.00295009]
[1760314933935,0.803,4158.2,4157.8,0.00295009]
[1760314934629,3.2078,4158.4,4157.8,0.00295009]
[1760314934830,3.2078,4158.4,4157.9,0.43251]
[1760314935032,3.17064584,4158.3,4157.9,0.43251]
[1760314935229,0.803,4158.8,4158.2,0.43248]
[1760314935534,0.803,4158.2,4157.8,3.21075009]
[1760314935736,3.2078,4158.4,4157.8,3.21075009]
[1760314935928,3.2078,4158.4,4157.9,0.43251]
[1760314935929,3.0665811,4158.1,4157.9,0.43251]
[1760314936136,3.2078,4159.5,4158.0,0.7781]
[1760314936323,3.2078,4159.5,4158.7,0.43243]
[1760314936324,1.0908,4159.4,4158.7,0.43243]
[1760314936525,6.31292041,4159.0,4158.4,0.43246]
[1760314936726,4.0108,4159.0,4158.0,0.7781]
[1760314937232,3.06384669,4158.9,4158.7,0.43242]
[1760314937439,3.2078,4159.0,4158.9,1.21051]
[1760314937735,3.2078,4159.5,4158.9,1.85913]
[1760314937935,0.803,4159.4,4158.2,3.2078]
[1760314938137,3.89428076,4159.4,4158.2,3.2078]
[1760314938334,3.89428076,4159.4,4158.0,1.1137]
[1760314938335,3.09128076,4159.4,4159.2,0.43237]
[1760314938534,3.2078,4159.5,4159.4,0.43236]
[1760314938736,0.803,4159.4,4159.0,0.43239]
[1760314939031,0.803,4159.3,4158.8,3.2078]
[1760314939232,3.2078,4159.0,4157.8,0.00295009]
[1760314939433,4.0108,4158.0,4157.8,0.43547009]
[1760314939734,3.2078,4158.0,4157.8,1.21357009]
[1760314939926,3.2078,4158.6,4157.8,0.00295009]
[1760314940131,3.2078,4158.6,4158.5,0.7781]
[1760314940435,3.98419534,4158.5,4157.8,0.00295009]
[1760314940633,3.98419534,4158.5,4158.1,0.43249]
[1760314940634,0.803,4158.5,4158.1,0.43249]
[1760314940833,3.2078,4158.6,4157.8,0.00295009]
[1760314941133,3.18119534,4158.4,4158.0,0.4325]
[1760314941335,3.90623719,4158.5,4158.2,0.43248]
[1760314941540,0.803,4158.5,4158.2,0.43248]
[1760314941733,3.10323719,4158.4,4158.2,0.43248]
[1760314942237,0.7829,4158.3,4158.0,0.4325]
[1760314942440,3.10323719,4158.4,4158.0,0.4325]
[1760314942633,3.84284,4158.2,4157.8,0.43547009]
[1760314942832,0.7829,4158.2,4157.9,0.43251]
[1760314943028,1.21536,4158.5,4157.8,0.00295009]
[1760314943239,3.07004703,4158.1,4157.9,0.43251]
[1760314943438,0.7829,4158.5,4157.9,0.43251]
[1760314943439,3.85294703,4158.5,4157.9,0.43251]
[1760314943632,3.07004703,4158.4,4157.9,0.43251]
[1760314943834,0.7829,4158.5,4157.8,0.00295009]
[1760314944236,3.08776935,4158.4,4157.8,0.00295009]
[1760314944644,3.08776935,4158.4,4158.0,0.4325]
[1760314944837,3.87066935,4158.4,4158.0,0.4325]
[1760314945344,3.87066935,4158.4,4157.8,0.00295009]
[1760314945345,0.7829,4158.4,4158.2,0.43248]
[1760314945543,3.07774991,4158.3,4158.2,0.43248]
[1760314945746,3.2078,4158.6,4158.5,1.25305]
[1760314946146,7.18308923,4158.6,4157.9,0.43252]
[1760314946342,7.18308923,4158.6,4157.8,0.00295009]
[1760314946643,0.7829,4158.0,4157.8,0.00295009]
[1760314946842,0.43258,4157.4,4156.5,3.2078]
[1760314947039,0.7829,4157.3,4156.2,0.43269]
[1760314947234,3.2078,4156.9,4156.3,0.43267]
[1760314947443,3.2078,4156.9,4156.1,0.8206]
[1760314947647,3.2078,4156.9,4155.2,0.3356]
[1760314947648,0.7829,4156.6,4155.5,3.64056]
[1760314947843,0.0031168,4156.6,4155.5,3.21079111]
[1760314948148,3.15930898,4156.5,4155.6,0.3324]
[1760314948346,0.7860168,4156.6,4156.2,0.43268]
[1760314948552,0.7860168,4156.6,4156.3,0.43267]
[1760314948752,0.7860168,4156.6,4156.4,0.43266]
[1760314948945,0.0031168,4156.6,4156.5,0.8206]
[1760314949449,0.7829,4156.5,4155.4,0.43278]
[1760314949744,3.08055536,4156.4,4155.5,0.43575111]
[1760314949938,3.08055536,4156.4,4155.7,0.43274]
[1760314950139,3.2109168,4156.6,4155.8,3.2078]
[1760314950344,3.2109168,4156.6,4155.5,0.00299111]
[1760314950651,0.7829,4156.3,4155.7,0.43274]
[1760314950854,0.7829,4156.3,4155.5,0.00299111]
[1760314951049,0.7829,4155.6,4154.6,3.2078]
[1760314951245,0.7829,4155.6,4154.4,1.67740832]
[1760314951246,0.7829,4155.5,4154.0,0.8206]
[1760314951555,3.2078,4155.0,4154.3,0.43288]
[1760314951946,3.09021311,4154.9,4154.3,0.43288]
[1760314952148,3.09021311,4154.9,4154.3,0.43543727]
[1760314952351,3.09021311,4154.9,4154.3,0.00255727]
[1760314952551,3.09021311,4154.9,4153.3,4.0284]
[1760314952552,0.7829,4154.4,4153.3,4.0284]
[1760314952747,1.21583,4153.9,4153.3,3.2078]
[1760314952955,1.21583,4153.9,4153.2,0.2407753]
[1760314952956,3.2078,4153.4,4153.2,0.2407753]
[1760314953159,3.2078,4153.4,4153.2,0.0295745]
[1760314953160,1.21589,4153.3,4153.2,0.0295745]
[1760314953456,0.7829,4153.2,4152.8,3.23188014]
[1760314953656,0.7829,4153.2,4152.8,0.02693365]
[1760314953657,3.2078,4152.9,4152.8,0.02693365]
[1760314953957,3.2078,4152.9,4152.2,3.2078]
[1760314953958,7.52122084,4152.9,4152.2,3.2078]
[1760314954157,7.52122084,4152.9,4151.6,0.43317]
[1760314954158,6.73832084,4152.9,4151.7,0.43315]
[1760314954354,6.73832084,4152.9,4151.7,0.8206]
[1760314954355,0.7829,4152.8,4151.7,0.8206]
[1760314954558,0.00300575,4153.2,4152.6,3.2078]
[1760314954970,3.86946324,4152.7,4152.6,0.00253285]
[1760314955168,0.7829,4152.7,4152.6,0.00253285]
[1760314955359,44.74044135,4152.7,4152.6,0.00253285]
[1760314955757,3.2078,4153.1,4152.8,0.43305]
[1760314955966,3.2078,4153.1,4153.0,0.43303]
[1760314956261,0.00300575,4153.2,4153.1,0.8206]
[1760314957366,0.00300575,4153.2,4153.0,0.43303]
[1760314957866,0.00300575,4153.2,4153.1,4.0284]
[1760314958360,3.2078,4154.5,4154.4,0.43288]
[1760314958764,0.7829,4154.4,4153.7,0.8206]
[1760314958960,7.14738025,4154.5,4153.9,0.43292]
[1760314959265,3.08513406,4154.3,4154.1,0.4329]
[1760314959563,0.7829,4154.3,4153.9,0.43293]
[1760314959763,3.99270936,4154.5,4153.9,0.43293]
[1760314959967,3.86803406,4154.2,4153.9,0.43293]
[1760314960159,3.86803406,4154.2,4153.3,3.2078]
[1760314960160,0.7829,4154.2,4154.0,0.43291]
[1760314960462,2.12182132,4154.1,4154.0,1.25351]
[1760314960666,3.9907,4156.1,4155.5,0.43276]
[1760314960860,3.2078,4155.6,4154.7,3.2078]
[1760314961067,3.2078,4155.6,4154.7,3.64064]
[1760314961068,0.7829,4155.5,4154.7,3.64064]
[1760314961266,0.7829,4155.5,4154.9,0.43282]
[1760314961768,0.78601907,4155.5,4154.9,0.43282]
[1760314962068,0.78601907,4155.5,4154.7,3.2078]
[1760314962069,0.00311907,4155.5,4155.4,0.8206]
[1760314962260,0.00311907,4155.5,4155.3,0.43278]
[1760314962459,0.00311907,4155.5,4155.2,3.2078]
[1760314962768,0.00311907,4155.5,4155.3,0.43278]
[1760314963064,0.00311907,4155.5,4155.4,0.8206]
[1760314963660,0.7829,4155.4,4154.0,0.43292]
[1760314963859,6.28737381,4155.5,4153.9,3.2078]
[1760314963860,0.7829,4154.7,4153.9,3.2078]
[1760314964055,0.7829,4154.7,4153.9,0.43293]
[1760314964255,3.17750292,4154.6,4153.5,3.2078]
[1760314964461,3.17750292,4154.6,4154.0,3.64071]
[1760314964667,3.17750292,4154.6,4154.0,3.2078]
[1760314965364,3.17750292,4154.6,4154.2,0.43289]
[1760314965761,0.7829,4154.7,4154.0,3.2078]
[1760314966266,0.8247,4154.4,4154.0,3.2078]
[1760314966470,0.8247,4154.2,4153.4,3.2078]
[1760314966668,0.43293,4154.0,4153.4,3.2078]
[1760314966960,3.16302326,4153.9,4153.4,3.2078]
[1760314967268,3.16302326,4153.9,4153.6,0.43296]
[1760314967657,3.18764327,4154.0,4153.8,0.43294]
[1760314967861,3.2078,4154.3,4154.1,0.7981]
[1760314968164,3.2078,4155.4,4154.5,0.43286]
[1760314968358,40.8,4155.3,4154.6,1.23095]
[1760314968555,3.2078,4155.4,4154.9,0.43282]
[1760314968764,4.0325,4155.4,4154.9,1.23092]
[1760314968960,3.19477945,4155.3,4154.4,3.5101]
[1760314969164,3.19477945,4155.3,4154.8,0.43283]
[1760314969362,4.01947945,4155.3,4154.8,0.43283]
[1760314969565,0.00311907,4155.5,4155.0,3.2078]
[1760314969868,3.14427442,4155.4,4155.3,0.43278]
[1760314970066,3.14427442,4155.4,4155.3,1.23088]
[1760314970268,0.00311907,4155.5,4155.4,0.7981]
[1760314971571,0.00311907,4155.5,4155.1,0.7833]
[1760314971757,0.00311907,4155.5,4155.0,3.2078]
[1760314971758,0.7972,4155.4,4155.0,3.2078]
[1760314971957,0.00311907,4155.5,4155.0,3.2078]
[1760314972169,0.00311907,4155.5,4155.3,0.43278]
[1760314972368,0.00311907,4155.5,4155.0,3.2078]
[1760314972562,0.00311907,4155.5,4154.6,0.7833]
[1760314972763,0.00311907,4155.5,4154.9,0.43282]
[1760314972962,0.00311907,4155.5,4154.6,0.7833]
[1760314972963,3.09228688,4155.4,4154.8,3.2078]
[1760314973270,3.09228688,4155.4,4155.2,0.43279]
[1760314973461,3.09228688,4155.4,4155.1,0.4328]
[1760314973867,3.09228688,4155.4,4155.2,0.43279]
[1760314974267,0.00311907,4155.5,4155.4,0.43277]
[1760314974464,0.00311907,4155.5,4155.4,1.21607]
[1760314974662,9.07e-06,4155.5,4155.4,1.21607]
[1760314976071,9.07e-06,4155.5,4155.3,3.2078]
[1760314976268,0.79720907,4155.5,4154.7,3.9911]
[1760314976460,9.07e-06,4155.5,4154.7,3.2078]
[1760314976666,9.07e-06,4155.5,4155.4,1.21607]
[1760314977374,9.07e-06,4155.5,4155.4,0.43277]
[1760314978067,3.2078,4157.7,4155.6,0.3144]
[1760314978275,3.2078,4157.7,4157.2,0.43258]
[1760314978568,3.2078,4157.7,4156.7,3.2078]
[1760314978569,41.5972,4157.6,4157.3,0.43257]
[1760314978770,0.7972,4157.5,4157.3,0.43257]
[1760314979076,0.7972,4156.8,4156.1,0.4327]
[1760314979262,4.005,4156.8,4156.2,0.43268]
[1760314979463,3.1371348,4157.5,4157.0,0.4326]
[1760314979464,3.2078,4157.3,4157.0,0.4326]
[1760314979671,0.7972,4157.2,4156.6,0.43264]
[1760314979868,0.7972,4157.2,4156.7,0.43263]
[1760314980172,3.07084746,4157.1,4156.7,0.78596886]
[1760314980365,3.64038,4157.3,4156.7,0.78596886]
[1760314980366,3.2078,4157.3,4156.8,3.2078]
[1760314980567,1.52623,4156.8,4156.7,0.00266886]
[1760314980767,0.7972,4156.8,4156.7,0.00266886]
[1760314980967,0.7972,4156.7,4155.2,3.9911]
[1760314981272,4.005,4156.3,4155.8,0.43273]
[1760314981473,0.4327,4156.1,4155.4,0.43277]
[1760314981876,0.7972,4155.9,4154.7,3.2078]
[1760314982073,1.22993,4155.9,4155.3,0.43278]
[1760314982273,3.2078,4155.7,4154.7,3.2103722]
[1760314982476,0.43277,4155.5,4154.9,0.43282]
[1760314982774,3.08390593,4155.4,4154.7,3.6432122]
[1760314982970,0.43282,4155.0,4154.7,0.0025722]
[1760314983172,3.6406,4155.2,4154.7,0.0025722]
[1760314983369,3.2078,4155.2,4154.7,0.0025722]
[1760314983569,0.7972,4154.9,4154.7,0.0025722]
[1760314983770,0.7972,4154.8,4154.7,0.0025722]
[1760314983970,3.9198593,4154.8,4154.7,0.0025722]
[1760314984372,3.1226593,4154.8,4154.7,0.0025722]
[1760314984573,3.9198593,4154.8,4154.7,0.0025722]
[1760314984772,0.7972,4154.8,4154.7,0.0025722]
[1760314985070,3.87402897,4154.8,4154.7,0.0025722]
[1760314987981,0.43289,4154.3,4153.6,3.2078]
[1760314988279,6.34054489,4154.2,4153.6,3.2078]
[1760314988480,0.43292,4154.1,4153.6,3.2078]
[1760314988676,0.43295,4153.8,4153.6,3.2078]
[1760314988873,0.43295,4153.8,4153.1,0.43301]
[1760314988874,3.13274489,4154.0,4153.1,1.69914866]
[1760314989085,6.34054489,4153.7,4153.1,2.13429707]
[1760314989381,4.43796,4153.7,4153.1,1.70128707]
[1760314989684,3.54209545,4153.6,4153.1,0.00213841]
[1760314989984,3.10913545,4153.6,4153.3,0.43299]
[1760314990178,0.00305474,4154.0,4153.6,0.7833]
[1760314990376,0.00305474,4154.0,4153.9,1.21623]
[1760314990883,0.00305474,4154.0,4153.9,0.43293]
[1760314991280,0.00305474,4154.0,4153.6,1.69914866]
[1760314991581,0.7972,4153.2,4153.1,0.00213841]
[1760314992081,3.92870004,4153.2,4153.1,0.00213841]
[1760314992277,0.7972,4153.0,4152.3,0.4331]
[1760314992477,0.7972,4153.0,4152.1,5.34005866]
[1760314992673,3.06784232,4152.9,4152.1,3.64091]
[1760314992877,3.06784232,4152.9,4152.1,4.90694866]
[1760314993187,0.7972,4152.8,4152.5,0.43307]
[1760314993393,3.86504232,4152.9,4152.3,0.43309]
[1760314993688,3.07564957,4152.7,4152.1,3.20978123]
[1760314993883,3.2078,4152.8,4152.1,3.20978123]
[1760314993884,6.28344957,4152.8,4152.1,3.20978123]
[1760314994189,3.13913343,4152.6,4152.1,3.20978123]
[1760314994484,3.13913343,4152.8,4152.6,0.43306]
[1760314994684,3.13913343,4152.8,4152.7,3.9911]
[1760314994887,0.7972,4153.0,4152.7,3.2078]
[1760314995192,0.7972,4152.7,4152.3,0.43309]
[1760314995384,3.88304689,4152.9,4152.2,3.2078]
[1760314995580,3.2078,4153.2,4152.7,0.43305]
[1760314995879,3.88304689,4153.1,4152.2,4.90694866]
[1760314996084,3.88304689,4153.4,4153.1,0.43301]
[1760314996286,3.2078,4153.9,4153.0,3.9911]
[1760314996481,3.2078,4153.9,4153.8,0.7833]
[1760314996984,0.7972,4153.9,4153.7,0.43294]
[1760314998488,0.7972,4153.9,4153.1,1.08253]
[1760314998489,0.43297,4153.6,4153.0,3.2078]
[1760314998694,0.7972,4153.7,4152.9,0.43303]
[1760314998985,3.5490732,4153.5,4152.5,3.2078]
[1760314999287,0.433,4153.3,4152.6,0.43307]
[1760314999485,0.43305,4152.8,4152.1,0.00198123]
[1760314999688,0.7972,4152.7,4152.1,0.00198123]
[1760314999887,3.9334756,4152.7,4152.1,0.00198123]
[1760315000088,3.9334756,4152.7,4152.1,0.43509123]
[1760315000386,3.9334756,4152.7,4151.5,0.43317]
[1760315000387,0.7972,4152.1,4151.5,0.43317]
[1760315000593,4.52457626,4152.2,4151.4,3.2078]
[1760315000898,4.52457626,4152.2,4150.7,1.08317]
[1760315000899,4.005,4151.9,4151.2,0.43321]
[1760315001090,4.005,4151.9,4151.3,0.4332]
[1760315001292,3.08728297,4151.8,4151.3,0.4332]
[1760315001491,3.08728297,4151.8,4151.4,0.43319]
[1760315001791,0.7421,4151.7,4151.3,0.0017352]
[1760315001988,3.72737626,4152.7,4152.0,0.43312]
[1760315002284,3.13762242,4152.2,4152.1,0.43311]
[1760315002590,0.7421,4152.2,4152.1,0.43311]
[1760315002787,3.2078,4152.9,4152.7,0.43306]
[1760315002990,3.9499,4152.9,4152.7,0.43306]
[1760315003186,3.2078,4152.9,4152.7,0.43306]
[1760315003382,3.2078,4153.5,4153.4,0.43298]
[1760315003583,0.7421,4154.2,4153.9,0.43293]
[1760315003780,3.2078,4154.3,4153.9,0.43293]
[1760315003983,0.1219,4155.6,4153.9,1.21243]
[1760315003984,3.2078,4154.8,4153.9,1.21243]
[1760315004990,4.74e-06,4154.0,4153.9,1.21243]
[1760315005193,3.2078,4154.8,4154.7,0.43285]
[1760315005391,3.9499,4154.8,4154.7,0.43285]
[1760315005897,3.2078,4154.8,4154.7,0.43285]
[1760315006192,3.21004982,4154.8,4154.7,0.43551575]
[1760315006590,3.21004982,4154.8,4154.7,0.00266575]
[1760315006795,7.0546452,4154.8,4154.7,0.00266575]
[1760315007887,6.3125452,4154.8,4154.7,0.00266575]
[1760315008089,6.3125452,4154.8,4154.7,0.78216575]
[1760315008090,3.21004982,4154.8,4154.7,0.78216575]
[1760315009098,0.7421,4156.1,4156.0,0.43271]
[1760315009291,0.7421,4156.3,4156.1,0.4327]